[Event "*** Qualifier 4: Titled Tuesday 3|2 Blitz"]
[Site "Chess.com"]
[Date "2017.04.25"]
[Round "1"]
[White "Elshan1985"]
[Black "mc4chess"]
[Result "1-0"]
[WhiteElo "2493"]
[BlackElo "2178"]
[TimeControl "180+2"]
[EndTime "13:08:00 PDT"]
[Termination "Elshan1985 won on time"]

1. d4 {[%clk 0:03:02]} 1... Nf6 {[%clk 0:02:58.7]} 2. c4 {[%clk 0:02:56.8]} 2...
e5 {[%clk 0:02:59]} 3. dxe5 {[%clk 0:02:56.8]} 3... Ng4 {[%clk 0:02:58.7]} 4.
Bf4 {[%clk 0:02:58.2]} 4... Nc6 {[%clk 0:02:59.8]} 5. Nf3 {[%clk 0:02:57.2]}
5... Bb4+ {[%clk 0:03:01.4]} 6. Nbd2 {[%clk 0:02:53.6]} 6... Qe7 {[%clk
0:03:03]} 7. a3 {[%clk 0:02:54]} 7... Ngxe5 {[%clk 0:03:04.7]} 8. Nxe5 {[%clk
0:02:54.8]} 8... Nxe5 {[%clk 0:03:06]} 9. e3 {[%clk 0:02:56.3]} 9... Bxd2+
{[%clk 0:03:04.7]} 10. Qxd2 {[%clk 0:02:58]} 10... d6 {[%clk 0:03:03.7]} 11. Be2
{[%clk 0:02:58.8]} 11... a5 {[%clk 0:02:58]} 12. O-O {[%clk 0:02:51.7]} 12...
Ng6 {[%clk 0:02:49.9]} 13. Bg3 {[%clk 0:02:51.6]} 13... O-O {[%clk 0:02:50.5]}
14. b4 {[%clk 0:02:51.9]} 14... b6 {[%clk 0:02:26.5]} 15. Bf3 {[%clk 0:02:51.6]}
15... Ra7 {[%clk 0:02:23.2]} 16. Rac1 {[%clk 0:02:44.1]} 16... axb4 {[%clk
0:02:15.8]} 17. axb4 {[%clk 0:02:45.2]} 17... Ne5 {[%clk 0:02:07.8]} 18. Bd5
{[%clk 0:02:36.8]} 18... Be6 {[%clk 0:01:52.6]} 19. c5 {[%clk 0:02:31.3]} 19...
bxc5 {[%clk 0:01:47.9]} 20. bxc5 {[%clk 0:02:32.4]} 20... Rd8 {[%clk 0:01:38.5]}
21. Bxe6 {[%clk 0:02:03.9]} 21... Qxe6 {[%clk 0:01:31.1]} 22. Rfd1 {[%clk
0:02:04.1]} 22... h6 {[%clk 0:00:45.5]} 23. Qd4 {[%clk 0:01:53.9]} 23... Raa8
{[%clk 0:00:44.5]} 24. h3 {[%clk 0:01:41.2]} 24... Rac8 {[%clk 0:00:20.8]} 25.
cxd6 {[%clk 0:01:34.9]} 25... cxd6 {[%clk 0:00:22.7]} 26. Rxc8 {[%clk
0:01:33.5]} 26... Rxc8 {[%clk 0:00:21.5]} 27. Qxd6 {[%clk 0:01:32.6]} 27... Qxd6
{[%clk 0:00:19.9]} 28. Rxd6 {[%clk 0:01:34.5]} 28... Rc1+ {[%clk 0:00:19.4]} 29.
Kh2 {[%clk 0:01:34.9]} 29... Ng6 {[%clk 0:00:20.9]} 30. h4 {[%clk 0:01:33.5]}
30... Ne7 {[%clk 0:00:20.7]} 31. e4 {[%clk 0:01:32.5]} 31... g6 {[%clk
0:00:17.1]} 32. Be5 {[%clk 0:01:21.9]} 32... Rc8 {[%clk 0:00:11.5]} 33. Bf6
{[%clk 0:01:22.3]} 33... Nc6 {[%clk 0:00:11.2]} 34. f3 {[%clk 0:01:20.7]} 34...
h5 {[%clk 0:00:10.1]} 35. Kg3 {[%clk 0:01:21.1]} 35... Kf8 {[%clk 0:00:06.9]}
36. Kf4 {[%clk 0:01:21.9]} 36... Ke8 {[%clk 0:00:04.4]} 37. Kg5 {[%clk
0:01:19.1]} 37... Nb8 {[%clk 0:00:03.1]} 38. Kh6 {[%clk 0:01:12.2]} 38... Nd7
{[%clk 0:00:03.9]} 39. Bg5 {[%clk 0:01:12.9]} 39... Rc2 {[%clk 0:00:02.3]} 40.
Ra6 {[%clk 0:00:57.8]} 1-0

[Event "*** Qualifier 4: Titled Tuesday 3|2 Blitz"]
[Site "Chess.com"]
[Date "2017.04.25"]
[Round "1"]
[White "SerGo055"]
[Black "iturrizaga"]
[Result "0-1"]
[WhiteElo "2323"]
[BlackElo "2659"]
[TimeControl "180+2"]
[EndTime "13:08:03 PDT"]
[Termination "iturrizaga won by checkmate"]

1. d4 {[%clk 0:02:56.9]} 1... Nf6 {[%clk 0:03:00.8]} 2. Nf3 {[%clk 0:02:57.6]}
2... b6 {[%clk 0:03:02.1]} 3. Bg5 {[%clk 0:02:57.6]} 3... Ne4 {[%clk 0:03:02.5]}
4. Bf4 {[%clk 0:02:58.3]} 4... Bb7 {[%clk 0:03:04.1]} 5. e3 {[%clk 0:02:59.7]}
5... g6 {[%clk 0:03:03.9]} 6. Nbd2 {[%clk 0:03:00.2]} 6... Bg7 {[%clk 0:03:00]}
7. Nxe4 {[%clk 0:03:01]} 7... Bxe4 {[%clk 0:03:01.9]} 8. Bd3 {[%clk 0:03:02.2]}
8... Bb7 {[%clk 0:03:02.2]} 9. O-O {[%clk 0:03:03.1]} 9... O-O {[%clk
0:03:03.5]} 10. c4 {[%clk 0:03:03.8]} 10... c5 {[%clk 0:03:05]} 11. Qe2 {[%clk
0:03:00.3]} 11... Bxf3 {[%clk 0:02:52.6]} 12. Qxf3 {[%clk 0:02:59.6]} 12... Nc6
{[%clk 0:02:53.9]} 13. dxc5 {[%clk 0:02:19.8]} 13... Bxb2 {[%clk 0:02:49.8]} 14.
Rab1 {[%clk 0:02:14.8]} 14... Bg7 {[%clk 0:02:48.6]} 15. cxb6 {[%clk 0:02:09.1]}
15... axb6 {[%clk 0:02:50.5]} 16. Be4 {[%clk 0:02:08]} 16... Rc8 {[%clk
0:02:42.4]} 17. Rfd1 {[%clk 0:02:02.1]} 17... Na5 {[%clk 0:02:36.7]} 18. Bd3
{[%clk 0:01:19.1]} 18... d6 {[%clk 0:02:19.6]} 19. Rdc1 {[%clk 0:01:12.2]} 19...
Rc5 {[%clk 0:02:18.5]} 20. e4 {[%clk 0:01:10.6]} 20... Bd4 {[%clk 0:02:18.2]}
21. Be3 {[%clk 0:00:48.3]} 21... Nc6 {[%clk 0:02:14.6]} 22. Bh6 {[%clk
0:00:42.2]} 22... Re8 {[%clk 0:02:09.8]} 23. Qe2 {[%clk 0:00:42.6]} 23... Qc7
{[%clk 0:02:03.2]} 24. Rb5 {[%clk 0:00:41.5]} 24... Ra8 {[%clk 0:02:03]} 25. g3
{[%clk 0:00:24.9]} 25... Ne5 {[%clk 0:01:57.7]} 26. Kg2 {[%clk 0:00:22.8]} 26...
Ra3 {[%clk 0:01:42.8]} 27. Rb3 {[%clk 0:00:19.2]} 27... Ra4 {[%clk 0:01:39.3]}
28. Be3 {[%clk 0:00:19.2]} 28... Bxe3 {[%clk 0:01:34.8]} 29. Qxe3 {[%clk
0:00:20.3]} 29... Rxa2 {[%clk 0:01:35.9]} 30. h3 {[%clk 0:00:19.2]} 30... h5
{[%clk 0:01:29.6]} 31. Bf1 {[%clk 0:00:19]} 31... Qc6 {[%clk 0:01:18.6]} 32.
Rcb1 {[%clk 0:00:18.9]} 32... Nxc4 {[%clk 0:01:16.7]} 33. Bxc4 {[%clk
0:00:19.4]} 33... Rxc4 {[%clk 0:01:18.6]} 34. Rb4 {[%clk 0:00:16.3]} 34... Rxb4
{[%clk 0:01:12.2]} 35. Rxb4 {[%clk 0:00:17]} 35... b5 {[%clk 0:01:13.8]} 36. Qd3
{[%clk 0:00:17.3]} 36... Ra4 {[%clk 0:01:11.1]} 37. Rxb5 {[%clk 0:00:17.6]}
37... Qxe4+ {[%clk 0:01:10.8]} 38. Qxe4 {[%clk 0:00:18.7]} 38... Rxe4 {[%clk
0:01:12.7]} 39. Kf3 {[%clk 0:00:19.6]} 39... Re5 {[%clk 0:01:13.6]} 40. Rb7
{[%clk 0:00:20.2]} 40... Kg7 {[%clk 0:01:14.9]} 41. Kf4 {[%clk 0:00:21.3]} 41...
g5+ {[%clk 0:01:16]} 42. Kf3 {[%clk 0:00:22.2]} 42... f5 {[%clk 0:01:17.4]} 43.
h4 {[%clk 0:00:21.3]} 43... g4+ {[%clk 0:01:18.2]} 44. Kf4 {[%clk 0:00:19]}
44... Kf6 {[%clk 0:01:19.3]} 45. f3 {[%clk 0:00:20.5]} 45... Re1 {[%clk
0:01:19.7]} 46. Rb8 {[%clk 0:00:20.9]} 46... e5# {[%clk 0:01:20.2]} 0-1

[Event "*** Qualifier 4: Titled Tuesday 3|2 Blitz"]
[Site "Chess.com"]
[Date "2017.04.25"]
[Round "1"]
[White "aa175"]
[Black "chipmunknau"]
[Result "0-1"]
[WhiteElo "1822"]
[BlackElo "2402"]
[TimeControl "180+2"]
[EndTime "13:08:05 PDT"]
[Termination "chipmunknau won by checkmate"]

1. d4 {[%clk 0:03:02]} 1... Nf6 {[%clk 0:02:59.7]} 2. Nc3 {[%clk 0:03:00.3]}
2... d5 {[%clk 0:02:53.3]} 3. Nf3 {[%clk 0:02:57.5]} 3... Bf5 {[%clk 0:02:53.7]}
4. e3 {[%clk 0:02:55.7]} 4... e6 {[%clk 0:02:54.1]} 5. Bd3 {[%clk 0:02:56.7]}
5... Bg6 {[%clk 0:02:52.8]} 6. Bxg6 {[%clk 0:02:55.3]} 6... hxg6 {[%clk
0:02:54.7]} 7. Qd3 {[%clk 0:02:54.8]} 7... a6 {[%clk 0:02:53.4]} 8. e4 {[%clk
0:02:53.2]} 8... dxe4 {[%clk 0:02:49.4]} 9. Nxe4 {[%clk 0:02:54]} 9... Nbd7
{[%clk 0:02:41.3]} 10. Bg5 {[%clk 0:02:51.4]} 10... Be7 {[%clk 0:02:34.3]} 11.
O-O-O {[%clk 0:02:45.8]} 11... Nxe4 {[%clk 0:02:32.8]} 12. Bxe7 {[%clk
0:02:43.3]} 12... Nxf2 {[%clk 0:02:30]} 13. Qe2 {[%clk 0:02:38.7]} 13... Qxe7
{[%clk 0:02:30.1]} 14. Qxf2 {[%clk 0:02:39.8]} 14... O-O-O {[%clk 0:02:26.5]}
15. d5 {[%clk 0:02:37.9]} 15... exd5 {[%clk 0:02:21.2]} 16. Rxd5 {[%clk
0:02:38.6]} 16... Nb6 {[%clk 0:02:19.2]} 17. Re5 {[%clk 0:02:22.2]} 17... Qf6
{[%clk 0:02:15.1]} 18. Rhe1 {[%clk 0:01:39.3]} 18... Nc4 {[%clk 0:02:13.8]} 19.
Qa7 {[%clk 0:01:28]} 19... Qf4+ {[%clk 0:01:23.6]} 20. Kb1 {[%clk 0:01:11.5]}
20... Nxe5 {[%clk 0:01:23.5]} 21. Qa8+ {[%clk 0:00:57.6]} 21... Kd7 {[%clk
0:01:23.4]} 22. Nxe5+ {[%clk 0:00:58.7]} 22... Qxe5 {[%clk 0:01:23.5]} 23. Qxd8+
{[%clk 0:00:59.6]} 23... Kxd8 {[%clk 0:01:20.7]} 24. Rxe5 {[%clk 0:01:00.5]}
24... Rxh2 {[%clk 0:01:21]} 25. Rd5+ {[%clk 0:00:56]} 25... Ke7 {[%clk
0:01:20.7]} 26. b3 {[%clk 0:00:48.2]} 26... Rxg2 {[%clk 0:01:20.6]} 27. Kb2
{[%clk 0:00:49.6]} 27... g5 {[%clk 0:01:18.4]} 28. Kc3 {[%clk 0:00:51.5]} 28...
g4 {[%clk 0:01:16.9]} 29. Re5+ {[%clk 0:00:52.8]} 29... Kd6 {[%clk 0:01:17]} 30.
Rg5 {[%clk 0:00:51.6]} 30... g6 {[%clk 0:01:17.9]} 31. Kd4 {[%clk 0:00:48.2]}
31... Rxc2 {[%clk 0:01:14.8]} 32. Rxg4 {[%clk 0:00:48.1]} 32... Rxa2 {[%clk
0:01:15]} 33. Rf4 {[%clk 0:00:49.3]} 33... f5 {[%clk 0:01:14]} 34. Rf1 {[%clk
0:00:48.6]} 34... Rd2+ {[%clk 0:01:13]} 35. Kc3 {[%clk 0:00:49.4]} 35... Re2
{[%clk 0:01:12.8]} 36. Rg1 {[%clk 0:00:49.9]} 36... Re6 {[%clk 0:01:10.4]} 37.
Kd4 {[%clk 0:00:50.5]} 37... c5+ {[%clk 0:01:08.6]} 38. Kd3 {[%clk 0:00:47.8]}
38... Kd5 {[%clk 0:01:06.1]} 39. Rg5 {[%clk 0:00:43.6]} 39... b5 {[%clk
0:01:06.6]} 40. Rg3 {[%clk 0:00:41.3]} 40... Ke5 {[%clk 0:01:03.9]} 41. Kc3
{[%clk 0:00:38.6]} 41... Kf4 {[%clk 0:01:03.4]} 42. Rg1 {[%clk 0:00:38.5]} 42...
Re3+ {[%clk 0:01:02.2]} 43. Kc2 {[%clk 0:00:36.7]} 43... g5 {[%clk 0:01:03]} 44.
Rf1+ {[%clk 0:00:37.1]} 44... Ke4 {[%clk 0:01:01.5]} 45. Ra1 {[%clk 0:00:36.5]}
45... Re2+ {[%clk 0:00:54.8]} 46. Kc3 {[%clk 0:00:37.5]} 46... b4+ {[%clk
0:00:54]} 47. Kc4 {[%clk 0:00:38.6]} 47... Rc2# {[%clk 0:00:54.6]} 0-1

[Event "*** Qualifier 4: Titled Tuesday 3|2 Blitz"]
[Site "Chess.com"]
[Date "2017.04.25"]
[Round "1"]
[White "Winehouse83"]
[Black "Rodalquilar"]
[Result "0-1"]
[WhiteElo "2259"]
[BlackElo "2557"]
[TimeControl "180+2"]
[EndTime "13:08:13 PDT"]
[Termination "Rodalquilar won by resignation"]

1. d4 {[%clk 0:03:02]} 1... Nf6 {[%clk 0:02:25.1]} 2. c4 {[%clk 0:03:01.8]} 2...
e6 {[%clk 0:02:26.1]} 3. Nf3 {[%clk 0:03:02.3]} 3... d5 {[%clk 0:02:26.9]} 4.
Nc3 {[%clk 0:02:59]} 4... Bb4 {[%clk 0:02:27.2]} 5. Qb3 {[%clk 0:02:57]} 5... a5
{[%clk 0:02:22.8]} 6. e3 {[%clk 0:02:51.3]} 6... O-O {[%clk 0:02:18.7]} 7. Bd2
{[%clk 0:02:46.7]} 7... Nc6 {[%clk 0:02:13.3]} 8. a3 {[%clk 0:02:44.2]} 8...
Bxc3 {[%clk 0:02:09.5]} 9. Bxc3 {[%clk 0:02:44.4]} 9... a4 {[%clk 0:02:11.1]}
10. Qc2 {[%clk 0:02:45.5]} 10... Ne4 {[%clk 0:02:12.6]} 11. Bd3 {[%clk
0:02:36.7]} 11... Nxc3 {[%clk 0:02:06.4]} 12. bxc3 {[%clk 0:02:08.3]} 12... h6
{[%clk 0:02:04.4]} 13. O-O {[%clk 0:01:59.7]} 13... b6 {[%clk 0:02:05.1]} 14.
cxd5 {[%clk 0:01:57.3]} 14... exd5 {[%clk 0:02:06]} 15. c4 {[%clk 0:01:58.4]}
15... dxc4 {[%clk 0:01:54.8]} 16. Bxc4 {[%clk 0:01:53]} 16... Na5 {[%clk
0:01:54.8]} 17. Ba2 {[%clk 0:01:49.3]} 17... Bb7 {[%clk 0:01:24.2]} 18. Ne5
{[%clk 0:01:46]} 18... Bd5 {[%clk 0:01:25.2]} 19. Bb1 {[%clk 0:01:44.8]} 19...
f5 {[%clk 0:01:20.4]} 20. Ba2 {[%clk 0:01:41.4]} 20... Nb3 {[%clk 0:01:18.5]}
21. Rad1 {[%clk 0:01:33]} 21... Qd6 {[%clk 0:01:17.8]} 22. Nc4 {[%clk
0:01:23.4]} 22... Qc6 {[%clk 0:01:18.4]} 23. Rc1 {[%clk 0:01:02.2]} 23... Nxc1
{[%clk 0:01:19.5]} 24. Rxc1 {[%clk 0:01:01.2]} 24... Bxc4 {[%clk 0:00:52.8]} 25.
Bxc4+ {[%clk 0:00:58.7]} 25... Kh8 {[%clk 0:00:54.3]} 26. Rb1 {[%clk 0:00:52.3]}
26... f4 {[%clk 0:00:43.4]} 27. e4 {[%clk 0:00:52.4]} 27... f3 {[%clk
0:00:43.7]} 28. gxf3 {[%clk 0:00:38.2]} 28... Qg6+ {[%clk 0:00:44]} 29. Kh1
{[%clk 0:00:38.5]} 29... Qd6 {[%clk 0:00:40.8]} 30. Qc3 {[%clk 0:00:34.4]} 30...
Rad8 {[%clk 0:00:40.5]} 31. d5 {[%clk 0:00:34.1]} 31... Rf4 {[%clk 0:00:33.1]}
32. e5 {[%clk 0:00:32.3]} 32... Qc5 {[%clk 0:00:33.5]} 33. Rc1 {[%clk
0:00:14.5]} 33... Qxf2 {[%clk 0:00:34]} 34. e6 {[%clk 0:00:09.3]} 34... Rh4
{[%clk 0:00:31.9]} 35. Qe5 {[%clk 0:00:07.8]} 35... Qxf3+ {[%clk 0:00:32.7]} 36.
Kg1 {[%clk 0:00:08.1]} 36... Rg4+ {[%clk 0:00:34]} 0-1

[Event "*** Qualifier 4: Titled Tuesday 3|2 Blitz"]
[Site "Chess.com"]
[Date "2017.04.25"]
[Round "1"]
[White "scrapnel"]
[Black "Quiet_Desperation"]
[Result "1-0"]
[WhiteElo "2472"]
[BlackElo "2149"]
[TimeControl "180+2"]
[EndTime "13:08:25 PDT"]
[Termination "scrapnel won by resignation"]

1. d4 {[%clk 0:02:59.7]} 1... Nf6 {[%clk 0:03:00]} 2. Nf3 {[%clk 0:03:00.6]}
2... e6 {[%clk 0:02:52.1]} 3. c4 {[%clk 0:02:59.6]} 3... Bb4+ {[%clk 0:02:51.7]}
4. Nbd2 {[%clk 0:02:59.8]} 4... b6 {[%clk 0:02:50.3]} 5. a3 {[%clk 0:03:00]}
5... Bxd2+ {[%clk 0:02:47.7]} 6. Bxd2 {[%clk 0:03:01.1]} 6... h6 {[%clk
0:02:47]} 7. g3 {[%clk 0:02:54.8]} 7... Bb7 {[%clk 0:02:46.3]} 8. Bg2 {[%clk
0:02:55.9]} 8... O-O {[%clk 0:02:37.4]} 9. O-O {[%clk 0:02:56.7]} 9... Be4
{[%clk 0:02:36.8]} 10. Bc3 {[%clk 0:02:55.2]} 10... Nc6 {[%clk 0:02:31.8]} 11.
Bh3 {[%clk 0:02:45.6]} 11... d6 {[%clk 0:02:20.3]} 12. Nd2 {[%clk 0:02:45.1]}
12... Bg6 {[%clk 0:02:20.7]} 13. Bg2 {[%clk 0:02:43.1]} 13... Qd7 {[%clk
0:02:09.6]} 14. e3 {[%clk 0:02:27.5]} 14... d5 {[%clk 0:02:03.5]} 15. Re1 {[%clk
0:02:22.4]} 15... Rad8 {[%clk 0:01:50.6]} 16. Rc1 {[%clk 0:02:20.6]} 16... Rfe8
{[%clk 0:01:46.1]} 17. Qa4 {[%clk 0:02:20.6]} 17... a5 {[%clk 0:01:37.8]} 18.
cxd5 {[%clk 0:02:11.5]} 18... exd5 {[%clk 0:01:35.8]} 19. Bf1 {[%clk 0:02:04.7]}
19... Ne7 {[%clk 0:01:28]} 20. Qxd7 {[%clk 0:02:01.9]} 20... Rxd7 {[%clk
0:01:26.2]} 21. Nf3 {[%clk 0:02:03.3]} 21... Ne4 {[%clk 0:01:23.8]} 22. Ne5
{[%clk 0:02:03.2]} 22... Rdd8 {[%clk 0:01:20.8]} 23. f3 {[%clk 0:02:00.6]} 23...
Ng5 {[%clk 0:01:13.6]} 24. h4 {[%clk 0:01:57]} 24... Ne6 {[%clk 0:01:09.4]} 25.
Bb5 {[%clk 0:01:57.7]} 25... Rf8 {[%clk 0:01:06.9]} 26. Kf2 {[%clk 0:01:54.9]}
26... c5 {[%clk 0:01:03]} 27. Nd7 {[%clk 0:01:45.4]} 27... Rxd7 {[%clk
0:00:55.8]} 28. Bxd7 {[%clk 0:01:45.4]} 28... c4 {[%clk 0:00:53.7]} 29. g4
{[%clk 0:01:39.1]} 29... Rd8 {[%clk 0:00:53.6]} 30. Bxe6 {[%clk 0:01:26.6]}
30... fxe6 {[%clk 0:00:53.1]} 31. e4 {[%clk 0:01:27.8]} 31... h5 {[%clk
0:00:43.9]} 32. exd5 {[%clk 0:01:23.5]} 32... Nxd5 {[%clk 0:00:45.1]} 33. Rxe6
{[%clk 0:01:22.8]} 33... Bf7 {[%clk 0:00:44.8]} 34. Re5 {[%clk 0:01:20.8]} 34...
hxg4 {[%clk 0:00:45.8]} 35. fxg4 {[%clk 0:01:20.5]} 35... Nf4 {[%clk 0:00:46]}
36. Kg3 {[%clk 0:01:15.8]} 36... Nd3 {[%clk 0:00:46.9]} 37. Rce1 {[%clk
0:01:07.4]} 37... Nxe5 {[%clk 0:00:47.7]} 38. Rxe5 {[%clk 0:00:54.1]} 38... Re8
{[%clk 0:00:44.4]} 39. Rxe8+ {[%clk 0:00:52]} 39... Bxe8 {[%clk 0:00:45.6]} 40.
d5 {[%clk 0:00:53.3]} 40... Bf7 {[%clk 0:00:42]} 41. d6 {[%clk 0:00:53.7]} 41...
Be6 {[%clk 0:00:42.9]} 42. h5 {[%clk 0:00:52.7]} 42... Kf7 {[%clk 0:00:44.2]}
43. Kf4 {[%clk 0:00:53.6]} 43... Bd7 {[%clk 0:00:39.4]} 44. g5 {[%clk
0:00:48.9]} 44... Bc6 {[%clk 0:00:38.1]} 45. Ke5 {[%clk 0:00:39.2]} 45... Bf3
{[%clk 0:00:34.4]} 46. h6 {[%clk 0:00:37.3]} 46... gxh6 {[%clk 0:00:34.8]} 47.
gxh6 {[%clk 0:00:37.7]} 47... Kg6 {[%clk 0:00:36.1]} 48. d7 {[%clk 0:00:38.3]}
1-0

[Event "*** Qualifier 4: Titled Tuesday 3|2 Blitz"]
[Site "Chess.com"]
[Date "2017.04.25"]
[Round "1"]
[White "Mbneu"]
[Black "GrigorGrigorov"]
[Result "0-1"]
[WhiteElo "2182"]
[BlackElo "2493"]
[TimeControl "180+2"]
[EndTime "13:08:28 PDT"]
[Termination "GrigorGrigorov won by resignation"]

1. d4 {[%clk 0:03:02]} 1... Nf6 {[%clk 0:03:00.1]} 2. c4 {[%clk 0:03:02.5]} 2...
e6 {[%clk 0:03:00.3]} 3. Nc3 {[%clk 0:03:02.8]} 3... Bb4 {[%clk 0:03:00.6]} 4.
Bg5 {[%clk 0:03:04.4]} 4... c5 {[%clk 0:02:56.4]} 5. dxc5 {[%clk 0:03:06.3]}
5... Na6 {[%clk 0:02:56.2]} 6. Nf3 {[%clk 0:03:06.1]} 6... Nxc5 {[%clk
0:02:56.2]} 7. Rc1 {[%clk 0:03:03.4]} 7... Nce4 {[%clk 0:02:53.7]} 8. Bd2 {[%clk
0:02:53.3]} 8... Nxd2 {[%clk 0:02:45.2]} 9. Nxd2 {[%clk 0:02:53.3]} 9... O-O
{[%clk 0:02:41.5]} 10. e3 {[%clk 0:02:53.6]} 10... b6 {[%clk 0:02:40.9]} 11. Be2
{[%clk 0:02:53.8]} 11... Bb7 {[%clk 0:02:41.4]} 12. O-O {[%clk 0:02:55.2]} 12...
d5 {[%clk 0:02:40.3]} 13. cxd5 {[%clk 0:02:55.2]} 13... Nxd5 {[%clk 0:02:40.6]}
14. Nxd5 {[%clk 0:02:45.6]} 14... Qxd5 {[%clk 0:02:31.4]} 15. Bf3 {[%clk
0:02:45.8]} 15... Qd7 {[%clk 0:02:32.2]} 16. Bxb7 {[%clk 0:02:45]} 16... Qxb7
{[%clk 0:02:33]} 17. Qf3 {[%clk 0:02:44.8]} 17... Qxf3 {[%clk 0:02:30.3]} 18.
Nxf3 {[%clk 0:02:45]} 18... Rac8 {[%clk 0:02:31.8]} 19. Rfd1 {[%clk 0:02:42.6]}
19... g6 {[%clk 0:02:28.7]} 20. Kf1 {[%clk 0:02:43]} 20... Kg7 {[%clk
0:02:19.3]} 21. Ke2 {[%clk 0:02:43.8]} 21... Kf6 {[%clk 0:02:19.6]} 22. a3
{[%clk 0:02:36]} 22... Rxc1 {[%clk 0:02:15.2]} 23. Rxc1 {[%clk 0:02:35.9]} 23...
Bd6 {[%clk 0:02:16.8]} 24. h3 {[%clk 0:02:30.4]} 24... g5 {[%clk 0:02:08.7]} 25.
Nd4 {[%clk 0:02:30.4]} 25... h5 {[%clk 0:02:04.5]} 26. Rc4 {[%clk 0:02:22.7]}
26... Be5 {[%clk 0:02:01.6]} 27. b4 {[%clk 0:02:20]} 27... Rd8 {[%clk
0:01:56.5]} 28. Nc6 {[%clk 0:02:15.7]} 28... Rd7 {[%clk 0:01:55.3]} 29. Nxe5
{[%clk 0:02:14.9]} 29... Kxe5 {[%clk 0:01:56.1]} 30. f3 {[%clk 0:02:15.3]} 30...
f5 {[%clk 0:01:53.2]} 31. f4+ {[%clk 0:02:13.2]} 31... Kf6 {[%clk 0:01:52.9]}
32. g3 {[%clk 0:02:10.5]} 32... Rg7 {[%clk 0:01:49.6]} 33. Kf2 {[%clk
0:02:04.2]} 33... Rd7 {[%clk 0:01:41.7]} 34. Ke2 {[%clk 0:02:04.7]} 34... gxf4
{[%clk 0:01:32.2]} 35. exf4 {[%clk 0:02:01.9]} 35... Rg7 {[%clk 0:01:06.2]} 36.
Kf3 {[%clk 0:02:01.8]} 36... Rd7 {[%clk 0:01:05.7]} 37. Ke2 {[%clk 0:02:01.9]}
37... Kg6 {[%clk 0:01:06.6]} 38. Rc6 {[%clk 0:01:59.7]} 38... Re7 {[%clk
0:01:07.2]} 39. Kf3 {[%clk 0:02:00.1]} 39... Kf6 {[%clk 0:01:07.6]} 40. g4
{[%clk 0:02:00.4]} 40... hxg4+ {[%clk 0:01:07.8]} 41. hxg4 {[%clk 0:02:01.4]}
41... fxg4+ {[%clk 0:01:08.7]} 42. Kxg4 {[%clk 0:02:02.6]} 42... Rd7 {[%clk
0:01:10.3]} 43. Rc3 {[%clk 0:02:01.2]} 43... Rd4 {[%clk 0:01:09.7]} 44. Rc7
{[%clk 0:01:59.7]} 44... a5 {[%clk 0:01:08.8]} 45. bxa5 {[%clk 0:01:51.7]} 45...
bxa5 {[%clk 0:01:09.7]} 46. Rc8 {[%clk 0:01:42.7]} 46... Rd3 {[%clk 0:01:02.2]}
47. Rf8+ {[%clk 0:01:38.7]} 47... Ke7 {[%clk 0:01:02.7]} 48. Rh8 {[%clk
0:01:36.9]} 48... Rxa3 {[%clk 0:01:01.1]} 49. Rh7+ {[%clk 0:01:37.9]} 49... Kd6
{[%clk 0:01:01.5]} 50. Kg5 {[%clk 0:01:39.4]} 50... Rg3+ {[%clk 0:00:54.1]} 51.
Kf6 {[%clk 0:01:36.5]} 51... Rf3 {[%clk 0:00:55.1]} 52. Rh4 {[%clk 0:01:31.2]}
52... a4 {[%clk 0:00:47.7]} 53. Kg5 {[%clk 0:01:31.6]} 53... a3 {[%clk
0:00:47.1]} 54. Rh2 {[%clk 0:01:32.2]} 54... Kc5 {[%clk 0:00:46.2]} 55. Kg4
{[%clk 0:01:33.2]} 55... Re3 {[%clk 0:00:46.7]} 56. f5 {[%clk 0:01:33.2]} 56...
exf5+ {[%clk 0:00:47.1]} 57. Kxf5 {[%clk 0:01:34.8]} 57... Kc4 {[%clk
0:00:46.5]} 58. Kf4 {[%clk 0:01:36.2]} 58... Rc3 {[%clk 0:00:45.5]} 59. Ke4
{[%clk 0:01:36.9]} 59... Kb3 {[%clk 0:00:46.3]} 60. Kd4 {[%clk 0:01:38]} 60...
Rc8 {[%clk 0:00:45.1]} 61. Kd3 {[%clk 0:01:38.1]} 61... a2 {[%clk 0:00:45.7]}
62. Rh1 {[%clk 0:01:38.9]} 62... Kb2 {[%clk 0:00:46.2]} 0-1

[Event "*** Qualifier 4: Titled Tuesday 3|2 Blitz"]
[Site "Chess.com"]
[Date "2017.04.25"]
[Round "1"]
[White "ABDELAZEEZ-M"]
[Black "GulamaliRises"]
[Result "0-1"]
[WhiteElo "2172"]
[BlackElo "2480"]
[TimeControl "180+2"]
[EndTime "13:08:38 PDT"]
[Termination "GulamaliRises won on time"]

1. d4 {[%clk 0:03:00]} 1... c5 {[%clk 0:02:59.9]} 2. d5 {[%clk 0:03:00.7]} 2...
e6 {[%clk 0:02:57.8]} 3. c4 {[%clk 0:03:01.1]} 3... exd5 {[%clk 0:02:58.1]} 4.
cxd5 {[%clk 0:03:02]} 4... d6 {[%clk 0:03:00]} 5. Nc3 {[%clk 0:03:02.7]} 5... g6
{[%clk 0:03:01.6]} 6. e4 {[%clk 0:03:03.5]} 6... a6 {[%clk 0:03:02.7]} 7. a4
{[%clk 0:03:03.8]} 7... Bg7 {[%clk 0:03:03.2]} 8. Be2 {[%clk 0:03:04.2]} 8...
Ne7 {[%clk 0:02:59]} 9. Nf3 {[%clk 0:03:01.2]} 9... h6 {[%clk 0:02:53.7]} 10.
Bf4 {[%clk 0:03:00.8]} 10... g5 {[%clk 0:02:54.7]} 11. Bg3 {[%clk 0:03:01.1]}
11... Ng6 {[%clk 0:02:51.2]} 12. h4 {[%clk 0:02:50.7]} 12... Nf4 {[%clk
0:02:24.2]} 13. Bxf4 {[%clk 0:02:40.1]} 13... gxf4 {[%clk 0:02:24.9]} 14. Qd2
{[%clk 0:02:39.4]} 14... Qf6 {[%clk 0:02:26.1]} 15. e5 {[%clk 0:02:12]} 15...
dxe5 {[%clk 0:02:26.8]} 16. Ne4 {[%clk 0:02:12.6]} 16... Qg6 {[%clk 0:02:22.2]}
17. Nxc5 {[%clk 0:01:58.1]} 17... e4 {[%clk 0:01:51.2]} 18. h5 {[%clk 0:01:54]}
18... Qh7 {[%clk 0:01:51.6]} 19. Qxf4 {[%clk 0:01:06.9]} 19... exf3 {[%clk
0:01:49.3]} 20. Bd3 {[%clk 0:01:07.6]} 20... f5 {[%clk 0:01:34.5]} 21. O-O-O
{[%clk 0:00:42.9]} 21... O-O {[%clk 0:01:33.9]} 22. gxf3 {[%clk 0:00:33.3]}
22... Bf6 {[%clk 0:01:02.8]} 23. Rhg1+ {[%clk 0:00:32.6]} 23... Bg5 {[%clk
0:00:59.7]} 24. Rde1 {[%clk 0:00:22.5]} 24... Kh8 {[%clk 0:00:54.2]} 25. Rxg5
{[%clk 0:00:22.7]} 25... hxg5 {[%clk 0:00:56.1]} 26. Qxg5 {[%clk 0:00:23.7]}
26... Qg7 {[%clk 0:00:56.5]} 27. Qh4 {[%clk 0:00:21.2]} 27... b6 {[%clk
0:00:25.9]} 28. Ne6 {[%clk 0:00:17.8]} 28... Bxe6 {[%clk 0:00:26.9]} 29. Rxe6
{[%clk 0:00:18.4]} 29... Ra7 {[%clk 0:00:25.4]} 30. Qf4 {[%clk 0:00:18.2]} 30...
Qg1+ {[%clk 0:00:19.7]} 31. Kc2 {[%clk 0:00:11.8]} 31... Rh7 {[%clk 0:00:15.6]}
32. Qe5+ {[%clk 0:00:12.1]} 32... Qg7 {[%clk 0:00:16.3]} 33. Qf4 {[%clk
0:00:10.4]} 33... Rxh5 {[%clk 0:00:16.6]} 34. d6 {[%clk 0:00:05.9]} 34... Nc6
{[%clk 0:00:17.7]} 35. d7 {[%clk 0:00:06.1]} 35... Nd4+ {[%clk 0:00:18]} 0-1